[Event "EYCC 2017"]
[Site "Mamaia"]
[Date "2017.09.12"]
[Round "7"]
[White "Shukhman, Anna"]
[Black "Fedorova, Olesya"]
[Result "0-1"]
[ECO "B42"]
[WhiteElo "1583"]
[BlackElo "1534"]
[Annotator "NA RC"]
[PlyCount "98"]
[EventDate "2017.??.??"]
[EventType "swiss"]
[EventCountry "ROU"]
[SourceTitle "playchess.com"]
[Source "ChessBase"]
[SourceQuality "1"]
[TimeControl "40/5400+30:1800+30"]

1. e4 {[%emt 0:00:00]} c5 {[%emt 0:00:09]} 2. Nf3 {[%emt 0:00:00]} e6 {[%emt 0:00:05]} 3. d4 {[%emt 0:00:00]} cxd4 {[%emt 0:00:05]} 4. Nxd4 {[%emt 0:00:00]} a6 {[%emt 0:00:08]} 5. Bd3 {[%emt 0:00:38]} Bc5 {[%emt 0:00:20]} 6. Nb3 {[%emt 0:00:07]} Be7 {[%emt 0:00:21]} 7. O-O {[%emt 0:00:10]} Nc6 {[%emt 0:01:55]} 8. Be3 {[%emt 0:02:37]} Nf6 {[%emt 0:06:39]} 9. Nc3 {[%emt 0:01:45]} d6 {[%emt 0:02:04]} 10. a4 {[%emt 0:01:37]} O-O {[%emt 0:01:42]} 11. a5 {[%emt 0:03:41]} Bd7 {[%emt 0:14:10]} 12. Na4 {[%emt 0:02:23]} Ne5 {[%emt 0:12:25]} 13. Nb6 {[%emt 0:01:09]} Rb8 {[%emt 0:00:24]} 14. h3 {[%emt 0:00:31]} Bc6 {[%emt 0:02:09]} 15. f4 {[%emt 0:01:18]} Nxd3 {[%emt 0:00:41]} 16. cxd3 {[%emt 0:00:07]} d5 {[%emt 0:01:50]} 17. e5 {[%emt 0:03:59]} Nd7 {[%emt 0:03:02]} 18. Nxd7 {[%emt 0:01:05]} Qxd7 {[%emt 0:00:17]} 19. Bc5 {[%emt 0:01:44]} Rbc8 {[%emt 0:03:14]} 20. d4 {[%emt 0:00:17]} Bb5 {[%emt 0:01:48]} 21. Rf3 {[%emt 0:03:40]} Bc4 {[%emt 0:01:32]} 22. Bxe7 {[%emt 0:02:25]} Bxb3 {[%emt 0:01:36]} 23. Qxb3 {[%emt 0:00:55]} Qxe7 {[%emt 0:00:58]} 24. Rc3 {[%emt 0:02:20]} Qd7 {[%emt 0:00:22]} 25. Rac1 {[%emt 0:00:30]} h6 {[%emt 0:02:38]} 26. Qb4 {[%emt 0:12:13]} Rfd8 {[%emt 0:07:06]} 27. Rc5 {[%emt 0:05:26]} Re8 {[%emt 0:02:27]} 28. Qb6 {[%emt 0:03:55]} Red8 {[%emt 0:07:50]} 29. R1c3 {[%emt 0:11:16]} Rxc5 {[%emt 0:02:34]} 30. Rxc5 {[%emt 0:01:37]} Rc8 {[%emt 0:00:52]} 31. Qd6 {[%emt 0:01:24]} Qe8 {[%emt 0:03:24]} 32. b3 {[%emt 0:02:29]} h5 {[%emt 0:03:53]} 33. Rxc8 {[%emt 0:06:22]} Qxc8 {[%emt 0:00:10]} 34. Qc5 {[%emt 0:00:07]} Qxc5 {[%emt 0:00:27]} 35. dxc5 {[%emt 0:00:06]} Kf8 {[%emt 0:00:13]} 36. b4 {[%emt 0:02:58]} Ke7 {[%emt 0:00:18]} 37. b5 {[%emt 0:00:17]} Kd7 {[%emt 0:03:15]} 38. c6+ {[%emt 0:00:17]} Kc7 {[%emt 0:02:57]} 39. bxa6 {[%emt 0:04:29]} bxa6 {[%emt 0:00:13]} 40. g4 {[%emt 0:00:00]} hxg4 {[%emt 0:00:09]} 41. hxg4 {[%emt 0:00:15]} Kxc6 {[%emt 0:00:59]} 42. Kf2 {[%emt 0:00:46]} g6 {[%emt 0:01:01]} 43. Ke3 {[%emt 0:01:09]} Kb5 {[%emt 0:05:29]} 44. Kd4 {[%emt 0:00:22]} Kxa5 {[%emt 0:01:44]} 45. f5 {[%emt 0:00:11]} gxf5 {[%emt 0:00:26]} 46. gxf5 {[%emt 0:00:05]} Kb5 {[%emt 0:00:27]} 47. Kc3 {[%emt 0:00:05]} Kc5 {[%emt 0:00:29]} 48. fxe6 {[%emt 0:00:08]} fxe6 {[%emt 0:00:04]} 49. Kd3 {[%emt 0:00:46]} a5 {[%emt 0:00:19]} 0-1

[Event "EYCC 2017"]
[Site "Mamaia"]
[Date "2017.09.12"]
[Round "7"]
[White "Shvedova, Alexandra"]
[Black "Muradyan, Anahit"]
[Result "1-0"]
[ECO "B18"]
[WhiteElo "1578"]
[BlackElo "1268"]
[Annotator "NA RC"]
[PlyCount "109"]
[EventDate "2017.??.??"]
[EventType "swiss"]
[EventCountry "ROU"]
[SourceTitle "playchess.com"]
[Source "ChessBase"]
[SourceQuality "1"]
[TimeControl "40/5400+30:1800+30"]

1. e4 c6 {[%emt 0:01:56]} 2. d4 {[%emt 0:00:00]} d5 {[%emt 0:00:05]} 3. Nc3 {[%emt 0:00:00]} dxe4 {[%emt 0:00:05]} 4. Nxe4 {[%emt 0:00:00]} Bf5 {[%emt 0:00:08]} 5. Ng3 {[%emt 0:00:00]} Bg6 {[%emt 0:00:06]} 6. Nf3 {[%emt 0:00:00]} Nd7 {[%emt 0:00:10]} 7. Bd3 {[%emt 0:00:00]} Bxd3 {[%emt 0:00:09]} 8. Qxd3 {[%emt 0:00:02]} Ngf6 {[%emt 0:00:16]} 9. O-O {[%emt 0:00:05]} e6 {[%emt 0:00:11]} 10. c4 Be7 {[%emt 0:01:27]} 11. b3 {[%emt 0:01:04]} O-O {[%emt 0:02:38]} 12. Bb2 {[%emt 0:00:06]} c5 {[%emt 0:11:31]} 13. Rad1 {[%emt 0:04:04]} cxd4 {[%emt 0:15:54]} 14. Nxd4 {[%emt 0:00:11]} a6 {[%emt 0:10:43]} 15. Ne4 {[%emt 0:02:30]} Qb6 {[%emt 0:10:19]} 16. Qe3 {[%emt 0:12:23]} Nxe4 {[%emt 0:09:45]} 17. Qxe4 {[%emt 0:00:06]} Nf6 {[%emt 0:01:33]} 18. Qe2 {[%emt 0:07:20]} Qc7 {[%emt 0:06:29]} 19. Nf3 {[%emt 0:07:08]} Nd7 {[%emt 0:07:58]} 20. Ne5 {[%emt 0:08:37]} Nxe5 {[%emt 0:01:55]} 21. Bxe5 {[%emt 0:02:20]} Qc6 {[%emt 0:02:57]} 22. Qg4 {[%emt 0:01:00]} g6 {[%emt 0:01:24]} 23. Qf4 {[%emt 0:01:59]} f5 {[%emt 0:01:11]} 24. Qh6 {[%emt 0:04:32]} Bf6 {[%emt 0:00:46]} 25. Rd6 {[%emt 0:00:37]} Qc8 {[%emt 0:01:01]} 26. Bxf6 {[%emt 0:00:32]} Rxf6 {[%emt 0:00:12]} 27. Rfd1 {[%emt 0:00:29]} Qf8 {[%emt 0:00:50]} 28. Qe3 {[%emt 0:01:19]} Re8 {[%emt 0:00:45]} 29. Qb6 {[%emt 0:01:14]} Rf7 {[%emt 0:02:38]} 30. Rxe6 {[%emt 0:00:42]} Rxe6 {[%emt 0:00:30]} 31. Qxe6 {[%emt 0:00:06]} Qe7 {[%emt 0:00:50]} 32. Qxe7 {[%emt 0:03:51]} Rxe7 {[%emt 0:00:05]} 33. Kf1 {[%emt 0:00:05]} Kf7 {[%emt 0:00:16]} 34. Rd3 {[%emt 0:00:33]} Kf6 {[%emt 0:02:07]} 35. Rd2 {[%emt 0:04:13]} Kg5 {[%emt 0:00:40]} 36. Re2 {[%emt 0:01:32]} Rc7 {[%emt 0:00:08]} 37. Ke1 {[%emt 0:00:15]} h5 {[%emt 0:01:02]} 38. Kd2 {[%emt 0:01:10]} Kf4 {[%emt 0:01:39]} 39. Kc3 {[%emt 0:00:22]} a5 {[%emt 0:01:12]} 40. Kd4 {[%emt 0:00:00]} b6 {[%emt 0:00:19]} 41. Re6 {[%emt 0:01:58]} Rd7+ {[%emt 0:04:59]} 42. Kc3 {[%emt 0:00:05]} g5 {[%emt 0:00:15]} 43. Rxb6 {[%emt 0:00:28]} Ra7 {[%emt 0:00:14]} 44. Rd6 {[%emt 0:00:50]} a4 {[%emt 0:01:08]} 45. b4 {[%emt 0:00:09]} g4 {[%emt 0:00:38]} 46. c5 {[%emt 0:00:22]} Ke5 {[%emt 0:00:12]} 47. Kc4 {[%emt 0:00:28]} Rb7 {[%emt 0:00:40]} 48. Rd5+ {[%emt 0:00:22]} Ke6 {[%emt 0:00:17]} 49. b5 {[%emt 0:00:24]} Kf6 {[%emt 0:00:21]} 50. c6 {[%emt 0:00:10]} Rc7 {[%emt 0:00:23]} 51. Kc5 {[%emt 0:00:07]} Ke6 {[%emt 0:00:47]} 52. b6 {[%emt 0:00:05]} Rc8 {[%emt 0:00:29]} 53. b7 {[%emt 0:00:04]} Re8 {[%emt 0:00:47]} 54. c7 {[%emt 0:00:07]} Kf7 {[%emt 0:00:05]} 55. c8=Q {[%emt 0:00:06]} 1-0

[Event "EYCC 2017"]
[Site "Mamaia"]
[Date "2017.09.12"]
[Round "7"]
[White "Svergina, Sofya"]
[Black "Zubkovskaya, Ekaterina"]
[Result "1-0"]
[ECO "B90"]
[WhiteElo "1472"]
[BlackElo "1399"]
[Annotator "NA RC"]
[PlyCount "131"]
[EventDate "2017.??.??"]
[EventType "swiss"]
[EventCountry "ROU"]
[SourceTitle "playchess.com"]
[Source "ChessBase"]
[SourceQuality "1"]
[TimeControl "40/5400+30:1800+30"]

1. e4 {[%emt 0:00:00]} c5 {[%emt 0:00:09]} 2. Nf3 {[%emt 0:00:00]} d6 {[%emt 0:00:10]} 3. d4 {[%emt 0:00:00]} cxd4 {[%emt 0:00:12]} 4. Nxd4 {[%emt 0:00:04]} Nf6 {[%emt 0:00:14]} 5. Nc3 {[%emt 0:00:10]} a6 {[%emt 0:00:07]} 6. Be3 {[%emt 0:00:05]} Ng4 {[%emt 0:00:09]} 7. Bg5 {[%emt 0:00:35]} h6 {[%emt 0:00:22]} 8. Bh4 {[%emt 0:00:35]} g5 {[%emt 0:00:08]} 9. Bg3 {[%emt 0:00:05]} Bg7 {[%emt 0:00:07]} 10. h3 {[%emt 0:01:41]} Ne5 {[%emt 0:00:11]} 11. Be2 {[%emt 0:03:11]} Nbc6 {[%emt 0:00:15]} 12. Nxc6 {[%emt 0:00:56]} bxc6 {[%emt 0:00:48]} 13. Bxe5 {[%emt 0:09:23]} Bxe5 {[%emt 0:00:12]} 14. Qd3 {[%emt 0:08:31]} Rb8 {[%emt 0:00:57]} 15. Rb1 {[%emt 0:00:35]} Qa5 {[%emt 0:04:27]} 16. O-O {[%emt 0:00:16]} h5 {[%emt 0:09:16]} 17. Qc4 {[%emt 0:10:27]} Qc7 {[%emt 0:00:25]} 18. Qd3 {[%emt 0:07:08]} g4 {[%emt 0:03:51]} 19. h4 {[%emt 0:00:05]} Bf6 {[%emt 0:02:21]} 20. Qg3 {[%emt 0:01:20]} Qa7 {[%emt 0:16:00]} 21. Kh1 {[%emt 0:09:11]} Be6 {[%emt 0:01:18]} 22. a3 {[%emt 0:04:16]} Bc8 {[%emt 0:06:50]} 23. Rfd1 {[%emt 0:10:13]} Bd7 {[%emt 0:01:17]} 24. Bc4 {[%emt 0:03:59]} a5 {[%emt 0:00:59]} 25. Bb3 {[%emt 0:03:45]} Qc5 {[%emt 0:01:56]} 26. Na4 {[%emt 0:03:00]} Qe5 {[%emt 0:00:28]} 27. Qxe5 {[%emt 0:00:20]} Bxe5 {[%emt 0:00:13]} 28. g3 {[%emt 0:00:38]} f5 {[%emt 0:00:37]} 29. exf5 {[%emt 0:01:47]} Bxf5 {[%emt 0:00:42]} 30. Kg1 {[%emt 0:01:25]} Kd7 {[%emt 0:01:16]} 31. Nc5+ {[%emt 0:00:49]} Ke8 {[%emt 0:01:14]} 32. Nd3 {[%emt 0:00:41]} Bf6 {[%emt 0:00:27]} 33. Kf1 {[%emt 0:01:14]} Be4 {[%emt 0:01:52]} 34. Nf4 {[%emt 0:01:21]} Bf3 {[%emt 0:01:17]} 35. Rd2 {[%emt 0:00:31]} Be5 {[%emt 0:03:14]} 36. Ng6 {[%emt 0:00:27]} Rg8 {[%emt 0:00:34]} 37. Bxg8 {[%emt 0:00:16]} Bc3 {[%emt 0:00:52]} 38. Rd3 {[%emt 0:00:44]} Bf6 {[%emt 0:00:28]} 39. Nf4 {[%emt 0:00:44]} Be4 {[%emt 0:00:28]} 40. Rd2 {[%emt 0:00:00]} Bc3 {[%emt 0:00:47]} 41. Re2 {[%emt 0:01:57]} Bf3 {[%emt 0:00:19]} 42. Re3 {[%emt 0:00:35]} Bd4 {[%emt 0:00:32]} 43. Re6 {[%emt 0:00:32]} Kd7 {[%emt 0:00:43]} 44. Bf7 {[%emt 0:00:53]} Rf8 {[%emt 0:02:55]} 45. Bxh5 {[%emt 0:00:12]} Be5 {[%emt 0:00:10]} 46. Re1 {[%emt 0:02:03]} Bd5 {[%emt 0:01:18]} 47. Rg6 {[%emt 0:01:42]} Bc4+ {[%emt 0:00:18]} 48. Kg1 {[%emt 0:00:11]} Bxf4 {[%emt 0:01:09]} 49. gxf4 {[%emt 0:00:06]} Rxf4 {[%emt 0:00:15]} 50. Rxg4 {[%emt 0:00:10]} Rxg4+ {[%emt 0:00:47]} 51. Bxg4+ {[%emt 0:00:07]} Kd8 {[%emt 0:00:32]} 52. h5 {[%emt 0:00:08]} Bg8 {[%emt 0:00:18]} 53. Bf5 {[%emt 0:00:05]} Ke8 {[%emt 0:00:14]} 54. h6 {[%emt 0:00:07]} Kf8 {[%emt 0:00:17]} 55. h7 {[%emt 0:00:06]} Bxh7 {[%emt 0:00:09]} 56. Bxh7 {[%emt 0:00:05]} Kf7 {[%emt 0:00:14]} 57. b4 {[%emt 0:00:10]} axb4 {[%emt 0:00:11]} 58. a4 {[%emt 0:00:18]} Ke8 {[%emt 0:00:19]} 59. a5 {[%emt 0:00:04]} Kd8 {[%emt 0:00:07]} 60. Rxe7 {[%emt 0:00:22]} Kc8 {[%emt 0:00:08]} 61. a6 {[%emt 0:00:08]} Kb8 {[%emt 0:00:08]} 62. a7+ {[%emt 0:00:09]} Ka8 {[%emt 0:00:08]} 63. Be4 {[%emt 0:00:12]} d5 {[%emt 0:00:06]} 64. Bf5 {[%emt 0:00:04]} b3 {[%emt 0:00:15]} 65. Bd7 {[%emt 0:00:08]} c5 {[%emt 0:00:19]} 66. Bc6# 1-0

[Event "EYCC 2017"]
[Site "Mamaia"]
[Date "2017.09.12"]
[Round "7"]
[White "Fileru, Maria"]
[Black "Chicarosie, Ioana-Bianca"]
[Result "1/2-1/2"]
[ECO "A80"]
[WhiteElo "1371"]
[BlackElo "1565"]
[Annotator "NA RC"]
[PlyCount "119"]
[EventDate "2017.??.??"]
[EventType "swiss"]
[EventCountry "ROU"]
[SourceTitle "playchess.com"]
[Source "ChessBase"]
[SourceQuality "1"]
[TimeControl "40/5400+30:1800+30"]

1. d4 f5 2. Nc3 Nf6 3. Bg5 d5 4. Bxf6 exf6 5. e3 Be6 6. Bb5+ Nd7 7. Qf3 c6 8. Bd3 g6 9. Nge2 Qc7 10. Nf4 Bf7 11. h3 Bd6 12. g4 fxg4 13. hxg4 Bxf4 14. Qxf4 Qxf4 15. exf4 O-O-O 16. O-O-O Rde8 17. Rde1 Rxe1+ 18. Rxe1 Re8 19. Rxe8+ Bxe8 20. Ne2 c5 21. c3 c4 22. Bc2 h5 23. f5 g5 24. Bd1 h4 25. f4 Kc7 26. fxg5 fxg5 27. Ng1 Nf6 28. Nh3 Nh7 29. Kd2 Kd6 30. Ke3 Ke7 31. Bc2 Kf6 32. Bd1 Nf8 33. Bc2 Bc6 34. Ng1 Nd7 35. Nf3 b5 36. b4 a6 37. Ke2 Bb7 38. a4 Bc6 39. a5 Bb7 40. Ke3 Bc6 41. Ke2 Bb7 42. Ke3 Bc6 43. Ke2 Bb7 44. Ke3 Nb8 45. Ne5 Nc6 46. Nxc6 Bxc6 47. Kf3 Bd7 48. Kg2 Bc6 49. Kh3 Bd7 50. Kg2 Bc6 51. Kh3 Bd7 52. Kg2 Bc6 53. Kh3 Bd7 54. Kg2 h3+ 55. Kxh3 Bc6 56. Kg3 Bd7 57. Kf3 Bc6 58. Kg3 Bd7 59. Kf3 Bc6 60. Kg3 1/2-1/2

[Event "EYCC 2017"]
[Site "Mamaia"]
[Date "2017.09.12"]
[Round "7"]
[White "Mustu, Hatice Asli"]
[Black "Poliato, Irina"]
[Result "1-0"]
[ECO "D00"]
[WhiteElo "1365"]
[BlackElo "1569"]
[Annotator "NA RC"]
[PlyCount "83"]
[EventDate "2017.??.??"]
[EventType "swiss"]
[EventCountry "ROU"]
[SourceTitle "playchess.com"]
[Source "ChessBase"]
[SourceQuality "1"]
[TimeControl "40/5400+30:1800+30"]

1. d4 {[%emt 0:00:00]} d5 {[%emt 0:00:04]} 2. Bf4 {[%emt 0:00:00]} Nf6 {[%emt 0:00:06]} 3. e3 {[%emt 0:00:00]} c5 {[%emt 0:00:57]} 4. c3 {[%emt 0:00:07]} Qb6 {[%emt 0:00:44]} 5. Qb3 {[%emt 0:00:12]} c4 {[%emt 0:00:49]} 6. Qc2 {[%emt 0:00:09]} Nc6 {[%emt 0:00:47]} 7. Nd2 {[%emt 0:00:10]} g6 {[%emt 0:00:46]} 8. Ngf3 {[%emt 0:01:44]} Bf5 {[%emt 0:01:08]} 9. Qc1 {[%emt 0:00:51]} Bg7 {[%emt 0:02:07]} 10. Be2 {[%emt 0:01:23]} O-O {[%emt 0:00:29]} 11. h3 {[%emt 0:00:38]} Rfe8 {[%emt 0:05:11]} 12. O-O {[%emt 0:03:14]} Ne4 {[%emt 0:13:48]} 13. Nxe4 {[%emt 0:01:21]} Bxe4 {[%emt 0:00:06]} 14. Nd2 {[%emt 0:00:37]} Bf5 {[%emt 0:00:34]} 15. e4 {[%emt 0:01:14]} Bxe4 {[%emt 0:04:28]} 16. Nxe4 {[%emt 0:00:13]} dxe4 {[%emt 0:00:05]} 17. Bxc4 {[%emt 0:00:40]} e5 {[%emt 0:05:13]} 18. dxe5 {[%emt 0:02:11]} Bxe5 {[%emt 0:06:17]} 19. Be3 {[%emt 0:03:41]} Qc7 {[%emt 0:00:27]} 20. Re1 {[%emt 0:06:54]} Kh8 {[%emt 0:07:32]} 21. Bg5 {[%emt 0:04:02]} f6 {[%emt 0:03:37]} 22. Be3 {[%emt 0:00:38]} Rad8 {[%emt 0:04:20]} 23. Kh1 {[%emt 0:20:18]} a6 {[%emt 0:09:43]} 24. Bb3 {[%emt 0:05:04]} Na5 {[%emt 0:08:08]} 25. Bc2 {[%emt 0:02:01]} f5 {[%emt 0:00:18]} 26. Bg5 {[%emt 0:01:15]} Rd7 {[%emt 0:02:39]} 27. Rd1 {[%emt 0:03:40]} Rxd1+ {[%emt 0:03:28]} 28. Qxd1 {[%emt 0:00:16]} Nc4 {[%emt 0:01:35]} 29. Rb1 {[%emt 0:01:17]} Re6 {[%emt 0:06:29]} 30. Bb3 {[%emt 0:02:14]} Rd6 {[%emt 0:00:57]} 31. Qe2 {[%emt 0:00:26]} Na5 {[%emt 0:01:19]} 32. f3 {[%emt 0:00:29]} Nxb3 {[%emt 0:02:20]} 33. axb3 {[%emt 0:00:10]} Qd7 {[%emt 0:02:36]} 34. Rf1 {[%emt 0:00:46]} Re6 {[%emt 0:03:21]} 35. fxe4 {[%emt 0:03:38]} Bg7 {[%emt 0:02:06]} 36. Rd1 {[%emt 0:00:18]} Qf7 {[%emt 0:01:36]} 37. Qc4 {[%emt 0:06:56]} Bf6 {[%emt 0:01:19]} 38. Rd6 {[%emt 0:01:22]} Bxg5 {[%emt 0:00:58]} 39. Qxe6 {[%emt 0:00:21]} Qxe6 {[%emt 0:00:08]} 40. Rxe6 {[%emt 0:00:00]} Bc1 {[%emt 0:00:39]} 41. exf5 {[%emt 0:00:13]} gxf5 {[%emt 0:00:06]} 42. Re2 1-0

[Event "EYCC 2017"]
[Site "Mamaia"]
[Date "2017.09.12"]
[Round "7"]
[White "Camlar, Arda"]
[Black "Vetokhin, Savva"]
[Result "1-0"]
[ECO "B30"]
[WhiteElo "1361"]
[BlackElo "1703"]
[Annotator "NA RC"]
[PlyCount "97"]
[EventDate "2017.??.??"]
[EventType "swiss"]
[EventCountry "ROU"]
[SourceTitle "playchess.com"]
[Source "ChessBase"]
[SourceQuality "1"]
[TimeControl "40/5400+30:1800+30"]

1. e4 {[%emt 0:00:00]} c5 {[%emt 0:00:13]} 2. Nf3 {[%emt 0:00:00]} Nc6 {[%emt 0:00:06]} 3. Bb5 {[%emt 0:00:00]} Nf6 {[%emt 0:00:51]} 4. e5 {[%emt 0:02:31]} Nd5 {[%emt 0:00:09]} 5. c4 {[%emt 0:03:41]} Ndb4 {[%emt 0:02:11]} 6. O-O {[%emt 0:00:28]} Nd3 {[%emt 0:00:30]} 7. Qe2 {[%emt 0:03:42]} Nxc1 {[%emt 0:00:19]} 8. Rxc1 {[%emt 0:00:11]} g6 {[%emt 0:01:02]} 9. Nc3 {[%emt 0:01:30]} Bg7 {[%emt 0:01:13]} 10. Qe3 {[%emt 0:07:20]} b6 {[%emt 0:02:35]} 11. Bxc6 {[%emt 0:04:54]} dxc6 {[%emt 0:00:09]} 12. d4 {[%emt 0:00:09]} cxd4 {[%emt 0:00:58]} 13. Nxd4 {[%emt 0:00:10]} Qc7 {[%emt 0:04:32]} 14. f4 {[%emt 0:02:19]} O-O {[%emt 0:04:50]} 15. b4 {[%emt 0:14:29]} Bb7 {[%emt 0:04:52]} 16. a4 {[%emt 0:14:28]} c5 {[%emt 0:01:29]} 17. Ndb5 {[%emt 0:00:15]} Qc6 {[%emt 0:00:45]} 18. Nd5 {[%emt 0:00:37]} Kh8 {[%emt 0:01:01]} 19. Nbc7 {[%emt 0:08:17]} Rac8 {[%emt 0:04:41]} 20. Nb5 {[%emt 0:00:40]} Ra8 {[%emt 0:01:39]} 21. Qh3 {[%emt 0:03:33]} a6 {[%emt 0:03:59]} 22. Nbc7 {[%emt 0:01:24]} e6 {[%emt 0:02:43]} 23. Nxa8 {[%emt 0:00:59]} Rxa8 {[%emt 0:00:33]} 24. b5 {[%emt 0:00:33]} Qd7 {[%emt 0:01:46]} 25. Rd1 {[%emt 0:02:46]} Rd8 {[%emt 0:01:53]} 26. Nc3 {[%emt 0:00:37]} Qc7 {[%emt 0:00:57]} 27. Rxd8+ {[%emt 0:00:17]} Qxd8 {[%emt 0:00:06]} 28. Rd1 {[%emt 0:00:09]} Qe7 {[%emt 0:00:25]} 29. Qd3 {[%emt 0:00:14]} axb5 {[%emt 0:05:14]} 30. axb5 {[%emt 0:00:14]} Bc8 {[%emt 0:01:17]} 31. Qd8+ {[%emt 0:00:11]} Bf8 {[%emt 0:02:18]} 32. Qxe7 {[%emt 0:00:42]} Bxe7 {[%emt 0:00:10]} 33. Ne4 {[%emt 0:00:08]} Kg8 {[%emt 0:00:36]} 34. Ra1 {[%emt 0:00:32]} Bb7 {[%emt 0:00:52]} 35. Nd6 {[%emt 0:00:14]} Bxd6 {[%emt 0:04:36]} 36. exd6 {[%emt 0:00:11]} Kf8 {[%emt 0:00:47]} 37. Ra6 {[%emt 0:01:30]} Ke8 {[%emt 0:01:43]} 38. Rxb6 {[%emt 0:00:17]} Be4 {[%emt 0:02:15]} 39. Rb8+ {[%emt 0:00:50]} Kd7 {[%emt 0:00:09]} 40. Rf8 {[%emt 0:00:00]} Kxd6 {[%emt 0:00:23]} 41. Rxf7 {[%emt 0:00:23]} Bd3 {[%emt 0:00:23]} 42. b6 {[%emt 0:00:15]} Bxc4 {[%emt 0:00:07]} 43. b7 {[%emt 0:00:09]} Be2 {[%emt 0:06:48]} 44. b8=Q+ {[%emt 0:00:35]} Kd5 {[%emt 0:01:20]} 45. Qe5+ {[%emt 0:00:12]} Kc4 {[%emt 0:04:19]} 46. Qxe2+ {[%emt 0:00:35]} Kc3 {[%emt 0:08:31]} 47. Rd7 {[%emt 0:00:20]} c4 {[%emt 0:00:42]} 48. Qd2+ {[%emt 0:00:08]} Kb3 {[%emt 0:02:22]} 49. Rb7+ 1-0

[Event "EYCC 2017"]
[Site "Mamaia"]
[Date "2017.09.12"]
[Round "7"]
[White "Makridis, Dimitrios"]
[Black "Saridag, Omer Melih"]
[Result "1/2-1/2"]
[ECO "B01"]
[WhiteElo "1288"]
[BlackElo "1803"]
[Annotator "NA RC"]
[PlyCount "98"]
[EventDate "2017.??.??"]
[EventType "swiss"]
[EventCountry "ROU"]
[SourceTitle "playchess.com"]
[Source "ChessBase"]
[SourceQuality "1"]
[TimeControl "40/5400+30:1800+30"]

1. e4 {[%emt 0:00:00]} d5 {[%emt 0:00:04]} 2. exd5 {[%emt 0:00:00]} Qxd5 {[%emt 0:00:09]} 3. Nc3 {[%emt 0:00:29]} Qa5 {[%emt 0:00:09]} 4. Nf3 {[%emt 0:00:23]} c6 {[%emt 0:00:48]} 5. d4 {[%emt 0:00:31]} Bf5 {[%emt 0:04:25]} 6. Bc4 {[%emt 0:00:52]} Nf6 {[%emt 0:00:30]} 7. O-O {[%emt 0:01:44]} e6 {[%emt 0:00:17]} 8. Ne5 {[%emt 0:04:19]} Bd6 {[%emt 0:01:26]} 9. f4 {[%emt 0:02:36]} O-O {[%emt 0:01:41]} 10. Be3 {[%emt 0:03:01]} b5 {[%emt 0:05:45]} 11. Bd3 {[%emt 0:04:57]} b4 {[%emt 0:01:17]} 12. Ne2 {[%emt 0:00:45]} Nd5 {[%emt 0:03:54]} 13. Qd2 {[%emt 0:01:52]} f6 {[%emt 0:05:57]} 14. Bxf5 {[%emt 0:02:25]} exf5 {[%emt 0:00:22]} 15. Nc4 {[%emt 0:01:17]} Qc7 {[%emt 0:05:34]} 16. Ng3 {[%emt 0:04:34]} g6 {[%emt 0:00:32]} 17. Nxd6 {[%emt 0:04:05]} Qxd6 {[%emt 0:00:07]} 18. c4 bxc3 19. bxc3 {[%emt 0:04:10]} Nb6 {[%emt 0:01:10]} 20. Qd3 {[%emt 0:01:55]} Qd5 {[%emt 0:00:17]} 21. Rfe1 {[%emt 0:03:48]} N8d7 {[%emt 0:00:33]} 22. Bc1 {[%emt 0:03:05]} Rfe8 {[%emt 0:01:33]} 23. Bd2 {[%emt 0:10:55]} Nc5 {[%emt 0:07:27]} 24. Qc2 {[%emt 0:02:18]} Ne4 {[%emt 0:00:27]} 25. Nf1 {[%emt 0:01:26]} Nc4 {[%emt 0:02:54]} 26. Ne3 {[%emt 0:02:20]} Nxe3 {[%emt 0:00:40]} 27. Rxe3 {[%emt 0:02:13]} c5 {[%emt 0:04:04]} 28. Rd3 {[%emt 0:02:07]} c4 {[%emt 0:06:46]} 29. Re3 {[%emt 0:01:50]} Reb8 {[%emt 0:01:01]} 30. Ree1 {[%emt 0:07:11]} Rb5 {[%emt 0:01:28]} 31. Rab1 {[%emt 0:02:50]} Rab8 {[%emt 0:01:16]} 32. Rxb5 {[%emt 0:03:18]} Qxb5 {[%emt 0:00:10]} 33. Bc1 {[%emt 0:00:43]} Rb6 {[%emt 0:06:31]} 34. Ba3 {[%emt 0:02:20]} Kg7 {[%emt 0:09:24]} 35. h3 {[%emt 0:00:57]} Kf7 {[%emt 0:04:28]} 36. Rd1 {[%emt 0:00:41]} Qd5 {[%emt 0:04:04]} 37. Rb1 {[%emt 0:01:27]} Rxb1+ {[%emt 0:10:25]} 38. Qxb1 {[%emt 0:00:13]} Kg7 {[%emt 0:03:40]} 39. Qb4 {[%emt 0:01:35]} Qf7 {[%emt 0:02:25]} 40. d5 {[%emt 0:00:00]} Qe8 {[%emt 0:01:32]} 41. d6 {[%emt 0:06:06]} Ng3 {[%emt 0:01:41]} 42. Qb7+ {[%emt 0:02:02]} Kg8 {[%emt 0:04:36]} 43. Qb1 {[%emt 0:05:21]} Qe3+ {[%emt 0:01:28]} 44. Kh2 {[%emt 0:00:42]} Qxf4 {[%emt 0:02:50]} 45. d7 {[%emt 0:04:42]} Ne2+ {[%emt 0:00:33]} 46. Kh1 {[%emt 0:00:17]} Ng3+ {[%emt 0:00:03]} 47. Kg1 {[%emt 0:01:03]} Ne2+ {[%emt 0:00:06]} 48. Kh1 {[%emt 0:00:09]} Ng3+ {[%emt 0:00:07]} 49. Kh2 {[%emt 0:00:50]} Ne2+ {[%emt 0:00:06]} 1/2-1/2